fUST/lending_fUST_20240715
["ID","MTS","AMOUNT","RATE_DAILY","PERIOD"]
[332197112,1721027453294,-500.0,0.00026027,2]
[332197113,1721027453303,-500.0,0.00026027,2]
[332197114,1721027453312,-500.0,0.00026027,2]
[332197115,1721027453321,-1344.15,0.00026027,2]
[332197116,1721027453331,-500.0,0.00026027,2]
[332197117,1721027453341,-15059.1,0.00026027,2]
[332197118,1721027453350,-500.0,0.00026027,2]
[332197119,1721027453359,-500.0,0.00026027,2]
[332197120,1721027453368,-500.0,0.00026027,2]
[332197121,1721027453377,-5270.0,0.00026027,2]
[332197122,1721027453386,-500.0,0.00026027,2]
[332197123,1721027453396,-1001.95,0.00026027,4]
[332197124,1721027453405,-500.0,0.00026027,2]
[332197125,1721027453414,-500.0,0.00026027,2]
[332197126,1721027453423,-509.67089546,0.00026027,2]
[332197127,1721027453433,-500.0,0.00026027,2]
[332197128,1721027453442,-500.0,0.00026027,2]
[332197129,1721027453451,-2846.88,0.00026027,2]
[332197130,1721027453460,-500.0,0.00026027,2]
[332197131,1721027453470,-500.0,0.00026027,2]
[332197132,1721027453479,-500.0,0.00026027,2]
[332197133,1721027453488,-500.0,0.00026027,2]
[332197134,1721027453497,-500.0,0.00026027,2]
[332197135,1721027453507,-500.0,0.00026027,2]
[332197136,1721027453515,-500.0,0.00026027,2]
[332197137,1721027453525,-500.0,0.00026027,2]
[332197138,1721027453534,-500.0,0.00026027,2]
[332197139,1721027453543,-500.0,0.00026027,2]
[332197140,1721027453552,-153.0,0.00026137,2]
[332197141,1721027453561,-153.0,0.00026137,2]
[332197142,1721027453570,-153.0,0.00026137,2]
[332197143,1721027453579,-153.0,0.00026137,2]
[332197144,1721027453590,-153.0,0.00026137,2]
[332197145,1721027453599,-153.0,0.00026137,2]
[332197146,1721027453609,-153.0,0.00026137,2]
[332197147,1721027453618,-153.0,0.00026137,2]
[332197148,1721027453627,-153.0,0.00026137,2]
[332197149,1721027453636,-206.3900376,0.00026137,2]
[332197150,1721027453645,-153.0,0.00026137,2]
[332197151,1721027453655,-206.3900376,0.00026137,2]
[332197152,1721027453663,-153.0,0.00026137,2]
[332197153,1721027453674,-153.0,0.00026137,2]
[332197154,1721027453685,-153.0,0.00026137,2]
[332197155,1721027453695,-153.0,0.00026137,2]
[332197156,1721027453704,-153.0,0.00026137,2]
[332197157,1721027453714,-153.0,0.00026137,2]
[332197158,1721027453723,-153.0,0.00026137,2]
[332197159,1721027453736,-153.0,0.00026137,2]
[332197160,1721027453745,-153.0,0.00026137,2]
[332197161,1721027453754,-153.0,0.00026137,2]
[332197162,1721027453763,-153.0,0.00026137,2]
[332197163,1721027453774,-153.0,0.00026137,2]
[332197164,1721027453783,-153.0,0.00026137,2]
[332197165,1721027453792,-153.0,0.00026137,2]
[332197166,1721027453803,-153.0,0.00026137,2]
[332197167,1721027453812,-153.0,0.00026137,2]
[332197168,1721027453822,-153.0,0.00026137,2]
[332197169,1721027453833,-153.0,0.00026137,2]
[332197170,1721027453843,-4802.49105129,0.0002615,2]
[332197171,1721027453852,-344.96997794,0.00026174,2]
[332197172,1721027453861,-2000.0,0.00026292,2]
[332197173,1721027453870,-500.0,0.00026301,2]
[332197174,1721027453880,-500.0,0.00026301,2]
[332197175,1721027453890,-622.2964126,0.00026301,2]
[332197176,1721027453902,-578.31225501,0.00026301,2]
[332197177,1721027453912,-2000.0,0.00026301,2]
[332197178,1721027453923,-500.0,0.00026301,2]
[332197179,1721027453933,-500.0,0.00026301,2]
[332197180,1721027453944,-759.01,0.00026301,2]
[332197181,1721027453954,-500.0,0.00026301,2]
[332197182,1721027453964,-500.0,0.00026301,2]
[332197183,1721027453975,-499.99788175,0.00026301,2]
[332197184,1721027453984,-500.0,0.00026301,2]
[332197185,1721027453994,-500.0,0.00026301,2]
[332197186,1721027454004,-500.0,0.00026301,2]
[332197187,1721027454013,-1005.39,0.00026301,2]
[332197188,1721027454023,-500.0,0.00026301,2]
[332197189,1721027454032,-500.0,0.00026301,2]
[332197190,1721027454042,-500.0,0.00026301,2]
[332197191,1721027454052,-500.0,0.00026301,2]
[332197192,1721027454061,-200.0,0.00026301,2]
[332197193,1721027454070,-500.0,0.00026301,2]
[332197194,1721027454079,-500.0,0.00026301,2]
[332197195,1721027454090,-512.40182545,0.00026301,2]
[332197196,1721027454100,-508.86795897,0.00026301,2]
[332197197,1721027454110,-447.38473016,0.00026301,2]
[332197198,1721027454119,-500.0,0.00026301,2]
[332197199,1721027454129,-527.72873348,0.00026301,2]
[332197200,1721027454138,-363.49108162,0.00026301,2]
[332197201,1721027454147,-500.0,0.00026301,2]
[332197202,1721027454157,-500.0,0.00026301,2]
[332197203,1721027454166,-500.0,0.00026301,2]
[332197204,1721027454177,-500.0,0.00026301,2]
[332197205,1721027454186,-151.0,0.00026301,7]
[332197206,1721027454196,-693.97,0.00026301,2]
[332197207,1721027454206,-500.0,0.00026301,2]
[332197208,1721027454215,-500.0,0.00026301,2]
[332197209,1721027454225,-500.0,0.00026301,2]
[332197210,1721027454235,-787.97,0.00026301,2]
[332197211,1721027454245,-500.0,0.00026301,2]
[332197212,1721027454255,-500.0,0.00026301,2]
[332197213,1721027454264,-500.0,0.00026301,2]
[332197214,1721027454274,-325.2892767,0.00026301,2]
[332197215,1721027454284,-510.05,0.00026301,2]
[332197216,1721027454293,-500.0,0.00026301,2]
[332197217,1721027454303,-500.0,0.00026301,2]
[332197218,1721027454312,-1635.04,0.00026301,2]
[332197219,1721027454321,-446.89518654,0.00026301,2]
[332197220,1721027454330,-500.0,0.00026301,2]
[332197221,1721027454339,-500.0,0.00026301,2]
[332197222,1721027454348,-500.0,0.00026301,2]
[332197223,1721027454357,-3722.38,0.00026301,2]
[332197224,1721027454366,-500.0,0.00026301,2]
[332197225,1721027454375,-404.93395029,0.00026301,2]
[332197226,1721027454384,-500.0,0.00026301,2]
[332197227,1721027454394,-500.0,0.00026301,2]
[332197228,1721027454403,-334.78237714,0.00026301,2]
[332197229,1721027454412,-527.44450704,0.00026301,2]
[332197230,1721027454421,-1135.35,0.00026301,2]
[332197231,1721027454430,-500.0,0.00026301,2]
[332197232,1721027454439,-500.0,0.00026301,2]
[332197233,1721027454448,-500.0,0.00026301,2]
[332197234,1721027454457,-500.0,0.00026301,2]
[332197235,1721027454466,-500.0,0.00026301,2]
[332197236,1721027454476,-500.0,0.00026301,2]
[332197237,1721027454486,-500.0,0.00026301,2]
[332197238,1721027454495,-535.41,0.00026301,2]
[332197239,1721027454503,-500.0,0.00026301,2]
[332197240,1721027454512,-647.05,0.00026301,2]
[332197241,1721027454522,-500.0,0.00026301,2]
[332197242,1721027454532,-500.0,0.00026301,2]
[332197243,1721027454541,-500.0,0.00026301,2]
[332197244,1721027454550,-500.0,0.00026301,2]
[332197245,1721027454559,-500.0,0.00026301,2]
[332197246,1721027454569,-500.0,0.00026301,2]
[332197247,1721027454578,-500.0,0.00026301,2]
[332197248,1721027454588,-500.85,0.00026301,2]
[332197249,1721027454598,-500.0,0.00026301,2]
[332197250,1721027454608,-602.58,0.00026301,2]
[332197251,1721027454617,-500.0,0.00026301,2]
[332197252,1721027454626,-732.87,0.00026301,2]
[332197253,1721027454636,-500.0,0.00026301,2]
[332197254,1721027454646,-336.6308613,0.00026301,2]
[332197255,1721027454655,-500.0,0.00026301,2]
[332197256,1721027454665,-500.0,0.00026301,2]
[332197257,1721027454674,-1344.15,0.00026301,2]
[332197258,1721027454683,-500.0,0.00026301,2]
[332197259,1721027454693,-15059.1,0.00026301,2]
[332197260,1721027454703,-500.0,0.00026301,2]
[332197261,1721027454713,-500.0,0.00026301,2]
[332197262,1721027454722,-500.0,0.00026301,2]
[332197263,1721027454736,-5270.0,0.00026301,2]
[332197264,1721027454745,-500.0,0.00026301,2]
[332197265,1721027454754,-1001.95,0.00026301,4]
[332197266,1721027454763,-500.0,0.00026301,2]
[332197267,1721027454774,-500.0,0.00026301,2]
[332197268,1721027454784,-500.0,0.00026301,2]
[332197269,1721027454793,-500.0,0.00026301,2]
[332197270,1721027454804,-2846.88,0.00026301,2]
[332197271,1721027454813,-500.0,0.00026301,2]
[332197272,1721027454823,-500.0,0.00026301,2]
[332197273,1721027454833,-500.0,0.00026301,2]
[332197274,1721027454843,-500.0,0.00026301,2]
[332197275,1721027454852,-389.65413007,0.00026301,2]
[332197276,1721027454861,-500.0,0.00026301,2]
[332197277,1721027454871,-500.0,0.00026301,2]
[332197278,1721027454880,-500.0,0.00026301,2]
[332197279,1721027454890,-500.0,0.00026301,2]
[332197280,1721027454899,-500.0,0.00026301,2]
[332197281,1721027454910,-233.7,0.00026387,2]
[332197282,1721027454919,-1000.0,0.0002646,2]
[332197283,1721027454930,-1000.0,0.00026461,2]
[332197284,1721027454939,-153.0,0.00026466,2]
[332197285,1721027454949,-153.0,0.00026466,2]
[332197286,1721027454959,-1000.0,0.00026478,2]
[332197287,1721027455061,-1000.0,0.00026494,2]
[332197288,1721027455070,-3000.0,0.000265,2]
[332197289,1721027455080,-3000.0,0.0002651,2]
[332197290,1721027455091,-3000.0,0.0002652,2]
[332197291,1721027455102,-344.96997794,0.00026527,2]
[332197292,1721027455112,-3000.0,0.0002653,2]
[332197293,1721027455121,-150.59952781,0.00026538,2]
[332197294,1721027455131,-3000.0,0.0002654,2]
[332197295,1721027455140,-3200.0,0.00026545,2]
[332197296,1721027455149,-425.151,0.00026545,2]
[332197297,1721027455159,-3000.0,0.0002655,2]
[332197298,1721027455168,-4802.4910513,0.00026552,2]
[332197299,1721027455179,-1000.0,0.00026559,2]
[332197300,1721027455188,-3000.0,0.0002656,2]
[332197301,1721027455197,-1000.0,0.00026563,2]
[332197302,1721027455207,-3000.0,0.0002657,2]
[332197303,1721027455216,-154.07830218,0.00026572,2]
[332197304,1721027455226,-500.0,0.00026575,2]
[332197305,1721027455236,-500.0,0.00026575,2]
[332197306,1721027455246,-500.0,0.00026575,2]
[332197307,1721027455256,-367.39471779,0.00026575,2]
[332197308,1721027455265,-759.01,0.00026575,2]
[332197309,1721027455275,-500.0,0.00026575,2]
[332197310,1721027455285,-500.0,0.00026575,2]
[332197311,1721027455294,-500.0,0.00026575,2]
[332197312,1721027455303,-500.0,0.00026575,2]
[332197313,1721027455313,-500.0,0.00026575,2]
[332197314,1721027455322,-1005.39,0.00026575,2]
[332197315,1721027455331,-500.0,0.00026575,2]
[332197316,1721027455341,-500.0,0.00026575,2]
[332197317,1721027455351,-500.0,0.00026575,2]
[332197318,1721027455361,-214.30740146,0.00026575,2]
[332197319,1721027455370,-200.0,0.00026575,2]
[332197320,1721027455380,-500.0,0.00026575,2]
[332197321,1721027455390,-500.0,0.00026575,2]
[332197322,1721027455399,-500.0,0.00026575,2]
[332197323,1721027455409,-500.0,0.00026575,2]
[332197324,1721027455419,-500.0,0.00026575,2]
[332197325,1721027455428,-500.0,0.00026575,2]
[332197326,1721027455437,-500.0,0.00026575,2]
[332197327,1721027455446,-693.97,0.00026575,2]
[332197328,1721027455458,-500.0,0.00026575,2]
[332197329,1721027455469,-500.0,0.00026575,2]
[332197330,1721027455478,-500.0,0.00026575,2]
[332197331,1721027455488,-787.97,0.00026575,2]
[332197332,1721027455497,-515.78441852,0.00026575,2]
[332197333,1721027455506,-514.88708275,0.00026575,2]
[332197334,1721027455516,-151.0,0.00026575,7]
[332197335,1721027455526,-500.0,0.00026575,2]
[332197336,1721027455535,-510.05,0.00026575,2]
[332197337,1721027455545,-151.0,0.00026575,7]
[332197338,1721027455555,-244.74244,0.00026575,7]
[332197339,1721027455564,-195.36816014,0.00026575,2]
[332197340,1721027455574,-356.28779861,0.00026575,2]
[332197341,1721027455585,-1635.04,0.00026575,2]
[332197342,1721027455595,-500.0,0.00026575,2]
[332197343,1721027455605,-500.0,0.00026575,2]
[332197344,1721027455614,-500.0,0.00026575,2]
[332197345,1721027455624,-3722.38,0.00026575,2]
[332197346,1721027455634,-500.0,0.00026575,2]
[332197347,1721027455643,-500.0,0.00026575,2]
[332197348,1721027455654,-500.0,0.00026575,2]
[332197349,1721027455665,-1135.35,0.00026575,2]
[332197350,1721027455675,-506.47412365,0.00026575,2]
[332197351,1721027455684,-500.0,0.00026575,2]
[332197352,1721027455694,-500.0,0.00026575,2]
[332197353,1721027455704,-500.0,0.00026575,2]
[332197354,1721027455714,-500.0,0.00026575,2]
[332197355,1721027455723,-319.731632,0.00026575,7]
[332197356,1721027455735,-319.731632,0.00026575,7]
[332197357,1721027455745,-524.64721976,0.00026575,2]
[332197358,1721027455755,-151.0,0.00026575,7]
[332197359,1721027455765,-151.0,0.00026575,7]
[332197360,1721027455774,-385.21904763,0.00026575,2]
[332197361,1721027455792,-114.78095237,0.00026575,2]
[332197362,1721027455803,-535.41,0.00026575,2]
[332197363,1721027455814,-500.0,0.00026575,2]
[332197364,1721027455824,-86.02874631,0.00026575,2]
[332197365,1721027455870,-500.0,0.00024657,2]
[332197366,1721027455880,-500.0,0.00024657,2]
[332197367,1721027455889,-500.0,0.00026269,2]
[332197368,1721027455899,-561.02125369,0.00026575,2]
[332197369,1721027455908,-77.84366483,0.00026575,2]
[332197370,1721027456057,-422.15633517,0.00026575,2]
[332197371,1721027456069,-500.0,0.00026575,2]
[332197372,1721027456079,-500.0,0.00026575,2]
[332197373,1721027456091,-241.47178922,0.00026575,2]
[332197374,1721027456103,-339.53442985,0.00026575,2]
[332197375,1721027456112,-500.0,0.00026575,2]
[332197376,1721027456122,-151.0,0.00026575,2]
[332197377,1721027456131,-151.0,0.00026575,7]
[332197378,1721027456141,-500.0,0.00026575,2]
[332197379,1721027456151,-265.744852,0.00026575,7]
[332197380,1721027456161,-500.85,0.00026575,2]
[332197381,1721027456170,-265.744852,0.00026575,7]
[332197382,1721027456179,-500.0,0.00026575,2]
[332197383,1721027456189,-602.58,0.00026575,2]
[332197384,1721027456198,-500.0,0.00026575,2]
[332197385,1721027456208,-732.87,0.00026575,2]
[332197386,1721027456217,-500.0,0.00026575,2]
[332197387,1721027456227,-561.9509239,0.00026575,2]
[332197388,1721027456237,-151.0,0.00026575,7]
[332197389,1721027456246,-500.0,0.00026575,2]
[332197390,1721027456255,-151.0,0.00026575,7]
[332197391,1721027456265,-151.0,0.00026575,7]
[332197392,1721027456275,-1344.15,0.00026575,2]
[332197393,1721027456285,-151.0,0.00026575,7]
[332197394,1721027456295,-500.0,0.00026575,2]
[332197395,1721027456305,-15059.1,0.00026575,2]
[332197396,1721027456315,-516.14284265,0.00026575,2]
[332197397,1721027456325,-500.0,0.00026575,2]
[332197398,1721027456335,-500.0,0.00026575,2]
[332197399,1721027456344,-5270.0,0.00026575,2]
[332197400,1721027456354,-500.0,0.00026575,2]
[332197401,1721027456365,-1001.95,0.00026575,4]
[332197402,1721027456375,-500.0,0.00026575,2]
[332197403,1721027456387,-500.0,0.00026575,2]
[332197404,1721027456398,-500.0,0.00026575,2]
[332197405,1721027456410,-500.0,0.00026575,2]
[332197406,1721027456419,-2846.88,0.00026575,2]
[332197407,1721027456430,-500.0,0.00026575,2]
[332197408,1721027456440,-500.0,0.00026575,2]
[332197409,1721027456450,-393.63978521,0.00026575,2]
[332197410,1721027456459,-500.0,0.00026575,2]
[332197411,1721027456469,-151.0,0.00026575,7]
[332197412,1721027456479,-500.0,0.00026575,2]
[332197413,1721027456489,-500.0,0.00026575,2]
[332197414,1721027456499,-494.67392276,0.00026575,2]
[332197415,1721027456508,-500.0,0.00026575,2]
[332197416,1721027456517,-210.84787414,0.00026575,2]
[332197417,1721027456527,-1000.0,0.00026576,2]
[332197418,1721027456537,-3000.0,0.0002658,2]
[332197419,1721027456546,-3000.0,0.0002659,2]
[332197420,1721027456555,-266.987352,0.000266,7]
[332197421,1721027456564,-266.987352,0.000266,7]
[332197422,1721027456574,-3000.0,0.000266,2]
[332197423,1721027456584,-151.0,0.000266,2]
[332197424,1721027456593,-3000.0,0.0002661,2]
[332197425,1721027456602,-201.21030325,0.00026613,2]
[332197426,1721027456612,-3000.0,0.0002662,2]
[332197427,1721027456622,-3000.0,0.0002663,2]
[332197428,1721027456632,-1000.0,0.00026635,2]
[332197429,1721027456641,-3000.0,0.0002664,2]
[332197430,1721027456650,-158.14450664,0.00026642,2]
[332197431,1721027456660,-3000.0,0.0002665,2]
[332197432,1721027456669,-3000.0,0.0002666,2]
[332197433,1721027456679,-3000.0,0.0002667,2]
[332197434,1721027456689,-3000.0,0.0002668,2]
[332197435,1721027456699,-3000.0,0.0002669,2]
[332197436,1721027456708,-3000.0,0.000267,2]
[332197437,1721027456718,-3000.0,0.0002671,2]
[332197438,1721027456728,-872.63645661,0.0002671,2]
[332197439,1721027456741,-3000.0,0.0002672,2]
[332197440,1721027456751,-3000.0,0.0002673,2]
[332197441,1721027456760,-3000.0,0.0002674,2]
[332197442,1721027456771,-157.07969579,0.00026746,2]
[332197443,1721027456781,-3000.0,0.0002675,2]
[332197444,1721027456790,-243.042766,0.00026759,7]
[332197445,1721027456800,-3000.0,0.0002676,2]
[332197446,1721027456811,-151.0,0.0002677,7]
[332197447,1721027456821,-3000.0,0.0002677,2]
[332197448,1721027456832,-3000.0,0.0002678,2]
[332197449,1721027456841,-3000.0,0.0002679,2]
[332197450,1721027456852,-153.0,0.00026795,2]
[332197451,1721027456864,-153.0,0.00026795,2]
[332197452,1721027456873,-153.0,0.00026795,2]
[332197453,1721027456883,-153.0,0.00026795,2]
[332197454,1721027456893,-153.0,0.00026795,2]
[332197455,1721027456903,-153.0,0.00026795,2]
[332197456,1721027456913,-153.0,0.00026795,2]
[332197457,1721027456923,-199.2933423,0.00026795,2]
[332197458,1721027456933,-153.0,0.00026795,2]
[332197459,1721027456942,-153.0,0.00026795,2]
[332197460,1721027456955,-153.0,0.00026795,2]
[332197461,1721027456965,-153.0,0.00026795,2]
[332197462,1721027456976,-153.0,0.00026795,2]
[332197463,1721027456986,-153.0,0.00026795,2]
[332197464,1721027456995,-3000.0,0.000268,2]
[332197465,1721027457005,-3000.0,0.0002681,2]
[332197466,1721027457015,-3000.0,0.0002682,2]
[332197467,1721027457024,-200.0,0.00026827,2]
[332197468,1721027457034,-3000.0,0.0002683,2]
[332197469,1721027457045,-3000.0,0.0002684,2]
[332197470,1721027457056,-500.0,0.00026849,2]
[332197471,1721027457067,-350.50030247,0.00026849,2]
[332197472,1721027457076,-326.76513126,0.00026849,2]
[332197473,1721027457086,-759.01,0.00026849,2]
[332197474,1721027457095,-500.0,0.00026849,2]
[332197475,1721027457105,-500.0,0.00026849,2]
[332197476,1721027457115,-500.0,0.00026849,2]
[332197477,1721027457124,-269.84315377,0.00026849,2]
[332197478,1721027457134,-500.0,0.00026849,2]
[332197479,1721027457144,-1005.39,0.00026849,2]
[332197480,1721027457153,-500.0,0.00026849,2]
[332197481,1721027457163,-500.0,0.00026849,2]
[332197482,1721027457173,-269.0661354,0.00026849,2]
[332197483,1721027457183,-200.0,0.00026849,2]
[332197484,1721027457192,-596.49596165,0.00026849,2]
[332197485,1721027457287,-500.0,0.00026849,2]
[332197486,1721027457297,-500.0,0.00026849,2]
[332197487,1721027457307,-500.0,0.00026849,2]
[332197488,1721027457317,-500.0,0.00026849,2]
[332197489,1721027457326,-500.0,0.00026849,2]
[332197490,1721027457336,-500.0,0.00026849,2]
[332197491,1721027457346,-172.220354,0.00026849,7]
[332197492,1721027457356,-693.97,0.00026849,2]
[332197493,1721027457366,-500.0,0.00026849,2]
[332197494,1721027457375,-500.0,0.00026849,2]
[332197495,1721027457385,-500.0,0.00026849,2]
[332197496,1721027457394,-787.97,0.00026849,2]
[332197497,1721027457404,-500.0,0.00026849,2]
[332197498,1721027457413,-510.05,0.00026849,2]
[332197499,1721027457422,-1635.04,0.00026849,2]
[332197500,1721027457432,-500.0,0.00026849,2]
[332197501,1721027457441,-416.082217,0.00026849,2]
[332197502,1721027457451,-353.12022013,0.00026849,2]
[332197503,1721027457460,-3722.38,0.00026849,2]
[332197504,1721027457470,-214.99268498,0.00026849,2]
[332197505,1721027457479,-405.00628276,0.00026849,2]
[332197506,1721027457488,-500.0,0.00026849,2]
[332197507,1721027457497,-1135.35,0.00026849,2]
[332197508,1721027457507,-500.0,0.00026849,2]
[332197509,1721027457517,-292.11014378,0.00026849,2]
[332197510,1721027457526,-500.0,0.00026849,2]
[332197511,1721027457535,-500.0,0.00026849,2]
[332197512,1721027457544,-629.09067598,0.00026849,2]
[332197513,1721027457554,-535.41,0.00026849,2]
[332197514,1721027457563,-514.65275339,0.00026849,2]
[332197515,1721027457572,-647.05,0.00026849,2]
[332197516,1721027457581,-508.93529703,0.00026849,2]
[332197517,1721027457592,-397.25568511,0.00026849,2]
[332197518,1721027457602,-500.0,0.00026849,2]
[332197519,1721027457612,-579.12536042,0.00026849,2]
[332197520,1721027457621,-500.0,0.00026849,2]
[332197521,1721027457631,-500.85,0.00026849,2]
[332197522,1721027457641,-500.0,0.00026849,2]
[332197523,1721027457650,-602.58,0.00026849,2]
[332197524,1721027457659,-348.82623907,0.00026849,2]
[332197525,1721027457669,-732.87,0.00026849,2]
[332197526,1721027457679,-500.0,0.00026849,2]
[332197527,1721027457688,-610.34182021,0.00026849,2]
[332197528,1721027457698,-1344.15,0.00026849,2]
[332197529,1721027457708,-500.0,0.00026849,2]
[332197530,1721027457718,-15059.1,0.00026849,2]
[332197531,1721027457727,-500.0,0.00026849,2]
[332197532,1721027457739,-500.0,0.00026849,2]
[332197533,1721027457749,-5270.0,0.00026849,2]
[332197534,1721027457758,-500.0,0.00026849,2]
[332197535,1721027457767,-1001.95,0.00026849,4]
[332197536,1721027457777,-500.0,0.00026849,2]
[332197537,1721027457786,-500.0,0.00026849,2]
[332197538,1721027457796,-500.0,0.00026849,2]
[332197539,1721027457808,-212.72249606,0.00026849,2]
[332197540,1721027457818,-2846.88,0.00026849,2]
[332197541,1721027457828,-500.0,0.00026849,2]
[332197542,1721027457838,-500.0,0.00026849,2]
[332197543,1721027457847,-553.03579637,0.00026849,2]
[332197544,1721027457857,-500.0,0.00026849,2]
[332197545,1721027457865,-217.54059777,0.00026849,2]
[332197546,1721027457874,-636.90766553,0.00026849,2]
[332197547,1721027457884,-151.0,0.00026849,7]
[332197548,1721027457894,-201.19161,0.00026849,7]
[332197549,1721027457903,-133.38986579,0.0002685,2]
[332197551,1721028389383,5693.31891427,0.00014998,2]
[332197552,1721028445852,216.11635272,0.00014998,2]
[332197553,1721028472183,217.45512546,0.00014998,2]
[332197560,1721028529348,1346.59136461,0.0002525,120]
[332197564,1721028551001,511.94838945,0.00014999,2]
[332197571,1721028619925,205.32749303,0.00014999,2]
[332197591,1721028632113,-1879.77073809,0.000189,2]
[332197593,1721028632126,-300.0,0.00019999,2]
[332197595,1721028632135,-4975.97168336,0.0002,2]
[332197597,1721028632144,-200.0,0.0002,2]
[332197599,1721028632154,-244.51455298,0.0002,2]
[332197601,1721028632163,-395.09787131,0.000203,2]
[332197603,1721028632173,-257.74350139,0.00021,2]
[332197605,1721028632183,-5803.32392342,0.00021,2]
[332197607,1721028632193,-210.47738041,0.00021095,2]
[332197609,1721028632203,-315.766386,0.00021096,2]
[332197611,1721028632212,-175.8761317,0.00021096,2]
[332197613,1721028632222,-208.83853644,0.00021917,2]
[332197615,1721028632232,-318.92327881,0.00021917,2]
[332197617,1721028632241,-166.666666,0.00021918,2]
[332197619,1721028632250,-166.666666,0.00022431,2]
[332197621,1721028632259,-639.56678668,0.00022468,2]
[332197623,1721028632268,-460.8099874,0.00022468,2]
[332197625,1721028632277,-500.0,0.00022468,2]
[332197627,1721028632288,-467.98898506,0.00022468,2]
[332197629,1721028632298,-24900.0,0.00022469,2]
[332197631,1721028632306,-163.677498,0.00022818,2]
[332197633,1721028632316,-166.666666,0.00022944,2]
[332197635,1721028632326,-250.000004,0.00023167,2]
[332197637,1721028632335,-166.666666,0.00023456,2]
[332197639,1721028632344,-664.64,0.000239,2]
[332197641,1721028632354,-1879.77073809,0.000239,2]
[332197643,1721028632363,-166.666666,0.00023969,2]
[332197645,1721028632373,-4332.06024111,0.00024,30]
[332197647,1721028632382,-311.1,0.00024388,2]
[332197649,1721028632392,-155.5,0.00024388,2]
[332197651,1721028632401,-153.0,0.00024415,2]
[332197653,1721028632411,-153.0,0.00024415,2]
[332197655,1721028632421,-153.0,0.00024415,2]
[332197657,1721028632431,-153.0,0.00024415,2]
[332197659,1721028632440,-153.0,0.00024415,2]
[332197661,1721028632449,-153.0,0.00024415,2]
[332197663,1721028632458,-153.0,0.00024415,2]
[332197665,1721028632467,-153.0,0.00024415,2]
[332197667,1721028632477,-153.0,0.00024415,2]
[332197669,1721028632486,-153.0,0.00024415,2]
[332197671,1721028632496,-153.0,0.00024415,2]
[332197673,1721028632505,-153.0,0.00024415,2]
[332197675,1721028632514,-153.0,0.00024415,2]
[332197677,1721028632523,-153.0,0.00024415,2]
[332197679,1721028632533,-153.0,0.00024415,2]
[332197681,1721028632543,-153.0,0.00024415,2]
[332197683,1721028632552,-153.0,0.00024415,2]
[332197685,1721028632563,-153.0,0.00024415,2]
[332197688,1721028632572,-153.0,0.00024415,2]
[332197690,1721028632581,-153.0,0.00024415,2]
[332197692,1721028632592,-153.0,0.00024415,2]
[332197694,1721028632601,-1361.74587991,0.00024435,2]
[332197696,1721028632611,-1361.74587991,0.00024437,2]
[332197698,1721028632621,-18636.58261792,0.00024444,2]
[332197700,1721028632631,-396.60210355,0.00024447,2]
[332197702,1721028632641,-2938.01249022,0.00024447,2]